fUSD/lending_fUSD_20250602
["ID","MTS","AMOUNT","RATE_DAILY","PERIOD"]
[363797656,1748875832227,-420.0,0.00019178,2]
[363797657,1748875832236,-420.0,0.00019178,2]
[363797658,1748875832246,-420.0,0.00019178,2]
[363797659,1748875832256,-420.0,0.00019178,2]
[363797660,1748875832265,-420.0,0.00019178,2]
[363797661,1748875832275,-420.0,0.00019178,2]
[363797662,1748875832285,-420.0,0.00019178,2]
[363797663,1748875832295,-420.0,0.00019178,2]
[363797664,1748875832305,-420.0,0.00019178,2]
[363797665,1748875832315,-420.0,0.00019178,2]
[363797666,1748875832325,-420.0,0.00019178,2]
[363797667,1748875832335,-420.0,0.00019178,2]
[363797669,1748875832344,-420.0,0.00019178,2]
[363797671,1748875832354,-159.02,0.00019178,2]
[363797673,1748875832364,-420.0,0.00019178,2]
[363797675,1748875832374,-420.0,0.00019178,2]
[363797677,1748875832383,-420.0,0.00019178,2]
[363797679,1748875832398,-420.0,0.00019178,2]
[363797681,1748875832408,-130.36440905,0.00019178,2]
[363797683,1748875832420,-289.63559095,0.00019178,2]
[363797685,1748875832430,-420.0,0.00019178,2]
[363797688,1748875832442,-420.0,0.00019178,2]
[363797691,1748875832452,-420.0,0.00019178,2]
[363797693,1748875832462,-420.0,0.00019178,2]
[363797694,1748875832474,-420.0,0.00019178,2]
[363797697,1748875832484,-420.0,0.00019178,2]
[363797699,1748875832494,-420.0,0.00019178,2]
[363797701,1748875832504,-420.0,0.00019178,2]
[363797703,1748875832514,-1091.27,0.00019178,2]
[363797705,1748875832523,-420.0,0.00019178,2]
[363797707,1748875832532,-74.31163241,0.00019178,2]
[363797709,1748875832545,-345.68836759,0.00019178,2]
[363797711,1748875832555,-420.0,0.00019178,2]
[363797713,1748875832565,-420.0,0.00019178,2]
[363797715,1748875832575,-420.0,0.00019178,2]
[363797717,1748875832585,-420.0,0.00019178,2]
[363797719,1748875832595,-2470.06,0.00019178,2]
[363797721,1748875832605,-420.0,0.00019178,2]
[363797723,1748875832615,-420.0,0.00019178,2]
[363797725,1748875832625,-420.0,0.00019178,2]
[363797727,1748875832634,-420.0,0.00019178,2]
[363797729,1748875832644,-210.53830508,0.00019178,2]
[363797731,1748875832656,-267.19169492,0.00019178,2]
[363797734,1748875832666,-426.19812198,0.00019178,2]
[363797735,1748875832675,-539.71,0.00019178,2]
[363797737,1748875832684,-779.275071,0.00019178,2]
[363797739,1748875832694,-420.0,0.00019178,2]
[363797741,1748875832703,-420.0,0.00019178,2]
[363797744,1748875832713,-420.0,0.00019178,2]
[363797746,1748875832724,-174.19154434,0.00019178,2]
[363797748,1748875832736,-245.80845566,0.00019178,2]
[363797750,1748875832746,-301.51,0.00019178,2]
[363797752,1748875832755,-420.0,0.00019178,2]
[363797754,1748875832766,-420.0,0.00019178,2]
[363797756,1748875832775,-420.0,0.00019178,2]
[363797758,1748875832785,-420.0,0.00019178,2]
[363797760,1748875832795,-420.0,0.00019178,2]
[363797762,1748875832804,-529.05,0.00019178,2]
[363797764,1748875832814,-420.0,0.00019178,2]
[363797766,1748875832824,-420.0,0.00019178,2]
[363797768,1748875832834,-514.12430635,0.00019178,2]
[363797770,1748875832844,-7950.28,0.00019178,2]
[363797772,1748875832854,-420.0,0.00019178,2]
[363797774,1748875832863,-420.0,0.00019178,2]
[363797776,1748875832873,-420.0,0.00019178,2]
[363797778,1748875832884,-420.0,0.00019178,2]
[363797780,1748875832894,-460.2,0.00019178,2]
[363797783,1748875832912,-420.0,0.00019178,2]
[363797786,1748875832925,-666.93,0.00019178,2]
[363797788,1748875832935,-420.0,0.00019178,2]
[363797790,1748875832944,-420.0,0.00019178,2]
[363797792,1748875832954,-353.92,0.00019178,2]
[363797793,1748875832965,-420.0,0.00019178,2]
[363797795,1748875832976,-420.0,0.00019178,2]
[363797797,1748875832986,-1981.972425,0.00019178,2]
[363797799,1748875832996,-420.0,0.00019178,2]
[363797802,1748875833007,-2591.54,0.00019178,2]
[363797804,1748875833018,-420.0,0.00019178,2]
[363797806,1748875833028,-420.0,0.00019178,2]
[363797808,1748875833038,-420.0,0.00019178,2]
[363797810,1748875833048,-420.0,0.00019178,2]
[363797812,1748875833059,-420.0,0.00019178,2]
[363797813,1748875833070,-533.85,0.00019178,2]
[363797815,1748875833079,-420.0,0.00019178,2]
[363797818,1748875833090,-420.0,0.00019178,2]
[363797819,1748875833099,-484.77,0.00019178,2]
[363797822,1748875833109,-420.0,0.00019178,2]
[363797824,1748875833120,-420.0,0.00019178,2]
[363797826,1748875833132,-260.47726009,0.00019178,2]
[363797828,1748875833143,-886.5,0.00019178,2]
[363797830,1748875833154,-420.0,0.00019178,2]
[363797832,1748875833165,-420.0,0.00019178,2]
[363797834,1748875833175,-420.0,0.00019178,2]
[363797836,1748875833185,-420.0,0.00019178,2]
[363797838,1748875833197,-420.0,0.00019178,2]
[363797840,1748875833207,-420.0,0.00019178,2]
[363797842,1748875833218,-420.0,0.00019178,2]
[363797844,1748875833231,-657.92,0.00019178,2]
[363797846,1748875833242,-420.0,0.00019178,2]
[363797848,1748875833253,-420.0,0.00019178,2]
[363797850,1748875833264,-420.0,0.00019178,2]
[363797852,1748875833275,-420.0,0.00019178,2]
[363797854,1748875833285,-1095.71,0.00019178,2]
[363797856,1748875833295,-440.04133042,0.00019178,2]
[363797858,1748875833306,-432.25686452,0.00019178,2]
[363797860,1748875833316,-420.0,0.00019178,2]
[363797862,1748875833326,-420.0,0.00019178,2]
[363797864,1748875833336,-420.0,0.00019178,2]
[363797866,1748875833346,-420.0,0.00019178,2]
[363797868,1748875833356,-420.0,0.00019178,2]
[363797870,1748875833366,-420.0,0.00019178,2]
[363797872,1748875833377,-420.0,0.00019178,2]
[363797874,1748875833389,-1175.65,0.00019178,2]
[363797876,1748875833403,-420.0,0.00019178,2]
[363797878,1748875833413,-420.0,0.00019178,2]
[363797880,1748875833424,-420.0,0.00019178,2]
[363797882,1748875833435,-438.75999999,0.00019178,2]
[363797884,1748875833448,-2047.5,0.00019178,2]
[363797887,1748875833459,-215.85189179,0.00019178,2]
[363797889,1748875833473,-420.0,0.00019178,2]
[363797891,1748875833483,-420.0,0.00019178,2]
[363797893,1748875833494,-420.0,0.00019178,2]
[363797895,1748875833504,-420.0,0.00019178,2]
[363797896,1748875833514,-420.0,0.00019178,2]
[363797899,1748875833524,-886.88,0.00019178,2]
[363797900,1748875833535,-420.0,0.00019178,2]
[363797903,1748875833546,-177.76149031,0.00019178,2]
[363797905,1748875833557,-420.0,0.00019178,2]
[363797907,1748875833568,-420.0,0.00019178,2]
[363797908,1748875833578,-359.02474068,0.00019178,2]
[363797911,1748875833589,-420.0,0.00019178,2]
[363797913,1748875833599,-420.0,0.00019178,2]
[363797915,1748875833607,-420.0,0.00019178,2]
[363797917,1748875833616,-301.1,0.00019178,2]
[363797919,1748875833625,-420.0,0.00019178,2]
[363797921,1748875833635,-420.0,0.00019178,2]
[363797923,1748875833645,-420.0,0.00019178,2]
[363797925,1748875833655,-420.0,0.00019178,2]
[363797927,1748875833667,-621.6,0.00019178,2]
[363797929,1748875833677,-420.0,0.00019178,2]
[363797931,1748875833687,-420.0,0.00019178,2]
[363797933,1748875833699,-420.0,0.00019178,2]
[363797935,1748875833709,-420.0,0.00019178,2]
[363797937,1748875833719,-420.0,0.00019178,2]
[363797939,1748875833732,-420.0,0.00019178,2]
[363797941,1748875833742,-420.0,0.00019178,2]
[363797943,1748875833752,-420.0,0.00019178,2]
[363797945,1748875833762,-858.86,0.00019178,2]
[363797947,1748875833771,-420.0,0.00019178,2]
[363797949,1748875833781,-420.0,0.00019178,2]
[363797951,1748875833791,-420.0,0.00019178,2]
[363797953,1748875833801,-420.0,0.00019178,2]
[363797955,1748875833811,-1882.16,0.00019178,2]
[363797957,1748875833822,-420.0,0.00019178,2]
[363797959,1748875833832,-420.0,0.00019178,2]
[363797961,1748875833842,-420.0,0.00019178,2]
[363797963,1748875833852,-5250.13,0.00019178,2]
[363797965,1748875833862,-420.0,0.00019178,2]
[363797967,1748875833872,-420.0,0.00019178,2]
[363797969,1748875833883,-567.27,0.00019178,2]
[363797971,1748875833893,-420.0,0.00019178,2]
[363797973,1748875833903,-420.0,0.00019178,2]
[363797975,1748875833912,-420.0,0.00019178,2]
[363797977,1748875833922,-420.0,0.00019178,2]
[363797979,1748875833932,-420.0,0.00019178,2]
[363797981,1748875833942,-420.0,0.00019178,2]
[363798006,1748875834239,-1827.36,0.00019178,2]
[363798007,1748875834250,-405.63990985,0.00019178,2]
[363798008,1748875834260,-420.0,0.00019178,2]
[363798009,1748875834271,-420.0,0.00019178,2]
[363798010,1748875834281,-259.53,0.00019178,2]
[363798011,1748875834290,-420.0,0.00019178,2]
[363798012,1748875834300,-420.0,0.00019178,2]
[363798013,1748875834310,-1067.14,0.00019178,2]
[363798014,1748875834320,-420.0,0.00019178,2]
[363798015,1748875834330,-930.07,0.00019178,2]
[363798016,1748875834339,-420.0,0.00019178,2]
[363798017,1748875834349,-420.0,0.00019178,2]
[363798018,1748875834359,-420.0,0.00019178,2]
[363798019,1748875834369,-420.0,0.00019178,2]
[363798020,1748875834379,-184.64,0.00019178,2]
[363798021,1748875834390,-420.0,0.00019178,2]
[363798022,1748875834403,-420.0,0.00019178,2]
[363798023,1748875834413,-420.0,0.00019178,2]
[363798025,1748875834423,-420.0,0.00019178,2]
[363798027,1748875834437,-1030.56,0.00019178,2]
[363798029,1748875834449,-420.0,0.00019178,2]
[363798031,1748875834459,-420.0,0.00019178,2]
[363798033,1748875834470,-420.0,0.00019178,2]
[363798035,1748875834483,-473.91338298,0.00019178,2]
[363798037,1748875834492,-1019.91,0.00019178,2]
[363798039,1748875834502,-420.0,0.00019178,2]
[363798041,1748875834512,-499.85,0.00019178,2]
[363798043,1748875834522,-979.16,0.00019178,2]
[363798044,1748875834532,-420.0,0.00019178,2]
[363798047,1748875834541,-420.0,0.00019178,2]
[363798049,1748875834551,-420.0,0.00019178,2]
[363798050,1748875834562,-504.86,0.00019178,2]
[363798052,1748875834572,-420.0,0.00019178,2]
[363798054,1748875834582,-420.0,0.00019178,2]
[363798056,1748875834591,-420.0,0.00019178,2]
[363798058,1748875834601,-420.0,0.00019178,2]
[363798061,1748875834611,-420.0,0.00019178,2]
[363798062,1748875834621,-320.22,0.00019178,2]
[363798064,1748875834630,-420.0,0.00019178,2]
[363798066,1748875834640,-420.0,0.00019178,2]
[363798068,1748875834650,-629.09,0.00019178,2]
[363798070,1748875834660,-420.0,0.00019178,2]
[363798072,1748875834669,-420.0,0.00019178,2]
[363798074,1748875834679,-420.0,0.00019178,2]
[363798076,1748875834689,-420.0,0.00019178,2]
[363798078,1748875834698,-1812.33,0.00019178,2]
[363798081,1748875834708,-447.74,0.00019178,2]
[363798082,1748875834718,-420.0,0.00019178,2]
[363798084,1748875834731,-1646.73,0.00019178,2]
[363798086,1748875834741,-420.0,0.00019178,2]
[363798088,1748875834751,-420.0,0.00019178,2]
[363798090,1748875834760,-440.27,0.00019178,2]
[363798093,1748875834770,-420.0,0.00019178,2]
[363798094,1748875834780,-420.0,0.00019178,2]
[363798096,1748875834790,-420.0,0.00019178,2]
[363798098,1748875834799,-420.0,0.00019178,2]
[363798100,1748875834809,-420.0,0.00019178,2]
[363798102,1748875834820,-420.0,0.00019178,2]
[363798104,1748875834830,-420.0,0.00019178,2]
[363798106,1748875834841,-437.05,0.00019178,2]
[363798108,1748875834851,-3296.62,0.00019178,2]
[363798110,1748875834861,-975.22,0.00019178,2]
[363798112,1748875834872,-420.0,0.00019178,2]
[363798114,1748875834882,-511.03,0.00019178,2]
[363798116,1748875834892,-420.0,0.00019178,2]
[363798118,1748875834902,-435.27,0.00019178,2]
[363798120,1748875834911,-420.0,0.00019178,2]
[363798122,1748875834921,-420.0,0.00019178,2]
[363798124,1748875834931,-1116.52,0.00019178,2]
[363798126,1748875834940,-420.0,0.00019178,2]
[363798128,1748875834950,-343.14229389,0.00019178,2]
[363798130,1748875834960,-420.0,0.00019178,2]
[363798132,1748875834970,-420.0,0.00019178,2]
[363798134,1748875834983,-420.0,0.00019178,2]
[363798136,1748875834993,-226.12,0.00019178,2]
[363798138,1748875835004,-420.0,0.00019178,2]
[363798140,1748875835013,-151.0,0.00019178,2]
[363798142,1748875835023,-151.0,0.000192,2]
[363798144,1748875835033,-151.0,0.00019202,2]
[363798146,1748875835042,-151.0,0.00019205,2]
[363798148,1748875835052,-151.0,0.00019215,2]
[363798150,1748875835062,-151.0,0.00019223,2]
[363798152,1748875835072,-5000.0,0.00019252,2]
[363798154,1748875835081,-158.26,0.00019305,2]
[363798156,1748875835091,-250.5,0.00019305,2]
[363798158,1748875835101,-500.0,0.00019314,2]
[363798160,1748875835110,-420.0,0.00019315,2]
[363798162,1748875835120,-420.0,0.00019315,2]
[363798164,1748875835130,-420.0,0.00019315,2]
[363798166,1748875835142,-528.5,0.00019315,2]
[363798168,1748875835151,-420.0,0.00019315,2]
[363798170,1748875835161,-420.0,0.00019315,2]
[363798172,1748875835171,-420.0,0.00019315,2]
[363798174,1748875835181,-420.0,0.00019315,2]
[363798176,1748875835191,-420.0,0.00019315,2]
[363798178,1748875835200,-567.18,0.00019315,2]
[363798180,1748875835210,-420.0,0.00019315,2]
[363798182,1748875835219,-420.0,0.00019315,2]
[363798184,1748875835232,-420.0,0.00019315,2]
[363798186,1748875835241,-420.0,0.00019315,2]
[363798188,1748875835251,-420.0,0.00019315,2]
[363798189,1748875835260,-420.0,0.00019315,2]
[363798191,1748875835270,-420.0,0.00019315,2]
[363798194,1748875835280,-420.0,0.00019315,2]
[363798196,1748875835290,-420.0,0.00019315,2]
[363798198,1748875835299,-168.85109098,0.00019315,2]
[363798199,1748875835309,-52.34497629,0.00019315,2]
[363798202,1748875835325,-367.65502371,0.00019315,2]
[363798204,1748875835335,-420.0,0.00019315,2]
[363798206,1748875835345,-420.0,0.00019315,2]
[363798208,1748875835355,-420.0,0.00019315,2]
[363798210,1748875835364,-420.0,0.00019315,2]
[363798212,1748875835373,-420.0,0.00019315,2]
[363798214,1748875835382,-420.0,0.00019315,2]
[363798216,1748875835395,-420.0,0.00019315,2]
[363798218,1748875835404,-420.0,0.00019315,2]
[363798220,1748875835414,-420.0,0.00019315,2]
[363798222,1748875835423,-420.0,0.00019315,2]
[363798224,1748875835433,-34.50924537,0.00019315,2]
[363798226,1748875835445,-385.49075463,0.00019315,2]
[363798228,1748875835455,-420.0,0.00019315,2]
[363798230,1748875835464,-268.4134954,0.00019315,2]
[363798233,1748875835483,-420.0,0.00019178,2]
[363798235,1748875835491,-151.5865046,0.00019315,2]
[363798237,1748875835500,-399.40653673,0.00019315,2]
[363798239,1748875835510,-20.59346327,0.00019315,2]
[363798241,1748875835519,-420.0,0.00019315,2]
[363798243,1748875835528,-420.0,0.00019315,2]
[363798245,1748875835537,-420.0,0.00019315,2]
[363798247,1748875835547,-420.0,0.00019315,2]
[363798249,1748875835556,-420.0,0.00019315,2]
[363798251,1748875835565,-150.52731668,0.00019315,2]
[363798253,1748875835574,-420.0,0.00019315,2]
[363798255,1748875835583,-420.0,0.00019315,2]
[363798257,1748875835592,-420.0,0.00019315,2]
[363798259,1748875835602,-420.0,0.00019315,2]
[363798261,1748875835611,-420.0,0.00019315,2]
[363798263,1748875835620,-420.0,0.00019315,2]
[363798265,1748875835629,-420.0,0.00019315,2]
[363798267,1748875835638,-420.0,0.00019315,2]
[363798269,1748875835648,-420.0,0.00019315,2]
[363798271,1748875835657,-420.0,0.00019315,2]
[363798273,1748875835666,-420.0,0.00019315,2]
[363798274,1748875835676,-420.0,0.00019315,2]
[363798276,1748875835686,-420.0,0.00019315,2]
[363798278,1748875835695,-420.0,0.00019315,2]
[363798280,1748875835704,-1091.27,0.00019315,2]
[363798282,1748875835714,-335.91386598,0.00019315,2]
[363798284,1748875835724,-420.0,0.00019315,2]
[363798286,1748875835733,-420.0,0.00019315,2]
[363798288,1748875835743,-420.0,0.00019315,2]
[363798290,1748875835752,-420.0,0.00019315,2]
[363798292,1748875835761,-2470.06,0.00019315,2]
[363798294,1748875835771,-420.0,0.00019315,2]
[363798296,1748875835780,-420.0,0.00019315,2]
[363798298,1748875835790,-477.73,0.00019315,2]
[363798300,1748875835799,-539.71,0.00019315,2]
[363798302,1748875835809,-420.0,0.00019315,2]
[363798304,1748875835819,-420.0,0.00019315,2]
[363798306,1748875835829,-420.0,0.00019315,2]
[363798308,1748875835839,-420.0,0.00019315,2]
[363798310,1748875835849,-420.0,0.00019315,2]
[363798312,1748875835859,-293.15,0.00019315,2]
[363798314,1748875835868,-420.0,0.00019315,2]
[363798316,1748875835878,-7950.28,0.00019315,2]
[363798318,1748875835887,-420.0,0.00019315,2]
[363798320,1748875835897,-420.0,0.00019315,2]
[363798322,1748875835906,-420.0,0.00019315,2]
[363798324,1748875835916,-420.0,0.00019315,2]
[363798326,1748875835927,-460.2,0.00019315,2]
[363798328,1748875835936,-129.47780077,0.00019315,2]
[363798357,1748875836231,-537.45219923,0.00019315,2]
[363798359,1748875836241,-420.0,0.00019315,2]
[363798361,1748875836251,-123.60560077,0.00019315,2]
[363798364,1748875836266,-296.39439923,0.00019315,2]
[363798366,1748875836276,-420.0,0.00019315,2]
[363798368,1748875836286,-382.50560077,0.00019315,2]
[363798557,1748875838265,-420.0,0.00019178,2]
[363798559,1748875838275,-420.0,0.00019178,2]
[363798561,1748875838285,-420.0,0.00019178,2]
[363798563,1748875838295,-529.6,0.00019178,2]
[363798565,1748875838303,-420.0,0.00019178,2]
[363798567,1748875838313,-420.0,0.00019178,2]
[363798569,1748875838322,-420.0,0.00019178,2]
[363798571,1748875838332,-1383.84,0.00019178,2]
[363798573,1748875838342,-323.35,0.00019178,2]
[363798575,1748875838352,-37.49439923,0.00019315,2]
[363798577,1748875838361,-2591.54,0.00019315,2]
[363798579,1748875838371,-420.0,0.00019315,2]
[363798581,1748875838380,-420.0,0.00019315,2]
[363798583,1748875838390,-420.0,0.00019315,2]
[363798585,1748875838404,-420.0,0.00019315,2]
[363798587,1748875838414,-420.0,0.00019315,2]
[363798589,1748875838424,-533.85,0.00019315,2]
[363798591,1748875838434,-420.0,0.00019315,2]
[363798593,1748875838446,-420.0,0.00019315,2]
[363798595,1748875838455,-484.77,0.00019315,2]
[363798597,1748875838465,-419.21708331,0.00019315,2]
[363798600,1748875838479,-0.78291669,0.00019315,2]
[363798602,1748875838490,-886.5,0.00019315,2]
[363798604,1748875838499,-420.0,0.00019315,2]
[363798606,1748875838508,-420.0,0.00019315,2]
[363798608,1748875838518,-420.0,0.00019315,2]
[363798610,1748875838527,-420.0,0.00019315,2]
[363798612,1748875838537,-420.0,0.00019315,2]
[363798614,1748875838547,-420.0,0.00019315,2]
[363798616,1748875838555,-657.92,0.00019315,2]
[363798618,1748875838566,-420.0,0.00019315,2]
[363798620,1748875838575,-420.0,0.00019315,2]
[363798622,1748875838585,-420.0,0.00019315,2]
[363798624,1748875838594,-1095.71,0.00019315,2]
[363798626,1748875838603,-472.41,0.00019315,2]
[363798628,1748875838612,-420.0,0.00019315,2]
[363798630,1748875838622,-420.0,0.00019315,2]
[363798632,1748875838631,-420.0,0.00019315,2]
[363798634,1748875838641,-420.0,0.00019315,2]
[363798636,1748875838651,-420.0,0.00019315,2]
[363798638,1748875838660,-420.0,0.00019315,2]
[363798640,1748875838670,-1175.65,0.00019315,2]
[363798642,1748875838679,-420.0,0.00019315,2]
[363798644,1748875838688,-420.0,0.00019315,2]
[363798646,1748875838698,-420.0,0.00019315,2]
[363798648,1748875838707,-2047.5,0.00019315,2]
[363798650,1748875838716,-420.0,0.00019315,2]
[363798652,1748875838727,-420.0,0.00019315,2]
[363798654,1748875838736,-420.0,0.00019315,2]
[363798656,1748875838746,-420.0,0.00019315,2]
[363798658,1748875838755,-886.88,0.00019315,2]
[363798660,1748875838764,-420.0,0.00019315,2]
[363798662,1748875838774,-420.0,0.00019315,2]
[363798664,1748875838783,-420.0,0.00019315,2]
[363798666,1748875838793,-493.42,0.00019315,2]
[363798668,1748875838802,-420.0,0.00019315,2]
[363798670,1748875838812,-420.0,0.00019315,2]
[363798672,1748875838822,-420.0,0.00019315,2]
[363798674,1748875838832,-420.0,0.00019315,2]
[363798676,1748875838842,-621.6,0.00019315,2]
[363798678,1748875838851,-420.0,0.00019315,2]
[363798680,1748875838861,-420.0,0.00019315,2]
[363798682,1748875838870,-420.0,0.00019315,2]
[363798684,1748875838880,-420.0,0.00019315,2]
[363798686,1748875838890,-420.0,0.00019315,2]
[363798688,1748875838900,-858.86,0.00019315,2]
[363798690,1748875838910,-420.0,0.00019315,2]
[363798692,1748875838920,-420.0,0.00019315,2]
[363798694,1748875838929,-1882.16,0.00019315,2]
[363798696,1748875838939,-420.0,0.00019315,2]
[363798698,1748875838948,-420.0,0.00019315,2]
[363798700,1748875838958,-500.46974191,0.00019315,2]
[363798703,1748875838971,-4749.66025809,0.00019315,2]
[363798706,1748875838984,-420.0,0.00019315,2]
[363798708,1748875838994,-420.0,0.00019315,2]
[363798711,1748875839005,-567.27,0.00019315,2]
[363798713,1748875839015,-420.0,0.00019315,2]
[363798715,1748875839025,-420.0,0.00019315,2]
[363798717,1748875839035,-420.0,0.00019315,2]
[363798719,1748875839043,-420.0,0.00019315,2]
[363798721,1748875839052,-1827.36,0.00019315,2]
[363798723,1748875839061,-420.0,0.00019315,2]
[363798725,1748875839069,-420.0,0.00019315,2]
[363798727,1748875839078,-193.88562289,0.00019315,2]
[363798729,1748875839088,-420.0,0.00019315,2]
[363798731,1748875839097,-145.61953122,0.00019315,2]
[363798748,1748875839250,-921.52046878,0.00019315,2]
[363798750,1748875839260,-420.0,0.00019315,2]
[363798752,1748875839271,-930.07,0.00019315,2]
[363798754,1748875839280,-420.0,0.00019315,2]
[363798756,1748875839290,-420.0,0.00019315,2]
[363798758,1748875839299,-420.0,0.00019315,2]
[363798760,1748875839309,-420.0,0.00019315,2]
[363798762,1748875839319,-420.0,0.00019315,2]
[363798764,1748875839328,-420.0,0.00019315,2]
[363798766,1748875839339,-1030.56,0.00019315,2]
[363798768,1748875839348,-420.0,0.00019315,2]
[363798770,1748875839358,-373.4228173,0.00019315,2]
[363798773,1748875839375,-46.5771827,0.00019315,2]
[363798776,1748875839385,-420.0,0.00019315,2]
[363798778,1748875839397,-1019.91,0.00019315,2]
[363798780,1748875839407,-420.0,0.00019315,2]
[363798782,1748875839415,-499.85,0.00019315,2]
[363798783,1748875839424,-12.72779724,0.00019315,2]
[363798786,1748875839438,-966.43220276,0.00019315,2]
[363798789,1748875839447,-420.0,0.00019315,2]
[363798810,1748875839691,-420.0,0.00019315,2]
[363798812,1748875839701,-420.0,0.00019315,2]
[363798813,1748875839711,-504.86,0.00019315,2]
[363798815,1748875839720,-420.0,0.00019315,2]
[363798817,1748875839733,-420.0,0.00019315,2]
[363798819,1748875839743,-217.4,0.00019315,2]
[363798821,1748875839752,-420.0,0.00019315,2]
[363798823,1748875839762,-420.0,0.00019315,2]
[363798824,1748875839772,-629.09,0.00019315,2]
[363798826,1748875839782,-420.0,0.00019315,2]
[363798828,1748875839792,-420.0,0.00019315,2]
[363798830,1748875839801,-420.0,0.00019315,2]
[363798831,1748875839811,-420.0,0.00019315,2]
[363798833,1748875839821,-1812.33,0.00019315,2]
[363798835,1748875839831,-447.74,0.00019315,2]
[363798837,1748875839841,-420.0,0.00019315,2]
[363798838,1748875839850,-841.28658744,0.00019315,2]
[363798841,1748875839872,-805.44341256,0.00019315,2]
[363798843,1748875839882,-420.0,0.00019315,2]
[363798844,1748875839892,-420.0,0.00019315,2]
[363798846,1748875839902,-440.27,0.00019315,2]
[363798848,1748875839912,-420.0,0.00019315,2]
[363798850,1748875839922,-420.0,0.00019315,2]
[363798852,1748875839932,-420.0,0.00019315,2]
[363798854,1748875839942,-420.0,0.00019315,2]
[363798856,1748875839952,-420.0,0.00019315,2]
[363798857,1748875839962,-437.05,0.00019315,2]
[363798859,1748875839972,-3296.62,0.00019315,2]
[363798861,1748875839985,-975.22,0.00019315,2]
[363798863,1748875839995,-420.0,0.00019315,2]
[363798864,1748875840005,-511.03,0.00019315,2]
[363798866,1748875840015,-420.0,0.00019315,2]
[363798868,1748875840024,-435.27,0.00019315,2]
[363798870,1748875840033,-420.0,0.00019315,2]
[363798872,1748875840043,-1116.52,0.00019315,2]
[363798873,1748875840052,-432.43,0.00019315,2]
[363798875,1748875840061,-420.0,0.00019315,2]
[363798877,1748875840070,-420.0,0.00019315,2]
[363798879,1748875840080,-420.0,0.00019315,2]
[363798881,1748875840089,-420.0,0.00019315,2]
[363798883,1748875840099,-420.0,0.00019315,2]
[363798885,1748875840108,-420.0,0.00019315,2]
[363798886,1748875840118,-420.0,0.00019315,2]
[363798888,1748875840127,-420.0,0.00019315,2]
[363798890,1748875840136,-1383.84,0.00019315,2]
[363798892,1748875840146,-1000.0,0.00019352,2]
[363798894,1748875840155,-700.0,0.000194,7]
[363798896,1748875840165,-1000.0,0.00019439,2]
[363798897,1748875840176,-841.0,0.00019451,2]
[363798899,1748875840187,-1.63742954,0.00019451,2]
[363798907,1748875840274,-498.36257046,0.00019451,2]